[Event "*** Titled Tuesday Blitz"]
[Site "Chess.com"]
[Date "2020.05.26"]
[Round "7"]
[White "dianosky"]
[Black "Bastiandash"]
[Result "1-0"]
[WhiteElo "2373"]
[BlackElo "2111"]
[TimeControl "180+1"]
[EndTime "11:19:08 PDT"]
[Termination "dianosky won on time"]

1. d4 {[%clk 0:03:00.9]} 1... Nf6 {[%clk 0:02:57.5]} 2. c4 {[%clk 0:03:01.2]}
2... e6 {[%clk 0:02:58.4]} 3. a3 {[%clk 0:03:01.3]} 3... d5 {[%clk 0:02:55.8]}
4. Nc3 {[%clk 0:03:00.8]} 4... dxc4 {[%clk 0:02:52.3]} 5. e3 {[%clk 0:03:00]}
5... c5 {[%clk 0:02:49.4]} 6. Bxc4 {[%clk 0:02:58.9]} 6... cxd4 {[%clk
0:02:45.1]} 7. exd4 {[%clk 0:02:59.8]} 7... Nc6 {[%clk 0:02:45.1]} 8. d5 {[%clk
0:03:00.1]} 8... exd5 {[%clk 0:02:44.2]} 9. Nxd5 {[%clk 0:02:59.4]} 9... Nxd5
{[%clk 0:02:38.5]} 10. Qxd5 {[%clk 0:02:59.4]} 10... Qxd5 {[%clk 0:02:33.3]} 11.
Bxd5 {[%clk 0:02:59.7]} 11... Be7 {[%clk 0:02:28.8]} 12. Nf3 {[%clk 0:02:57.9]}
12... O-O {[%clk 0:02:28.2]} 13. O-O {[%clk 0:02:55.9]} 13... Bf6 {[%clk
0:02:20.6]} 14. Rd1 {[%clk 0:02:50.2]} 14... Bg4 {[%clk 0:02:20.1]} 15. h3
{[%clk 0:02:50.3]} 15... Bh5 {[%clk 0:02:18.5]} 16. Ra2 {[%clk 0:02:46]} 16...
Rfd8 {[%clk 0:02:01.8]} 17. Be3 {[%clk 0:02:12.2]} 17... Ne5 {[%clk 0:01:11.4]}
18. b4 {[%clk 0:01:50]} 18... Nxf3+ {[%clk 0:01:03.7]} 19. gxf3 {[%clk
0:01:47.9]} 19... Rd7 {[%clk 0:01:01.7]} 20. Rad2 {[%clk 0:01:43]} 1-0

[Event "*** Titled Tuesday Blitz"]
[Site "Chess.com"]
[Date "2020.05.26"]
[Round "7"]
[White "freshfoodcompany"]
[Black "MarceloPlaya"]
[Result "0-1"]
[WhiteElo "2203"]
[BlackElo "2361"]
[TimeControl "180+1"]
[EndTime "11:19:13 PDT"]
[Termination "MarceloPlaya won by resignation"]

1. d4 {[%clk 0:03:00.9]} 1... e6 {[%clk 0:02:59.6]} 2. c4 {[%clk 0:03:00.6]}
2... Nf6 {[%clk 0:02:59]} 3. Nc3 {[%clk 0:02:59.8]} 3... Bb4 {[%clk 0:02:58.3]}
4. e3 {[%clk 0:02:59.2]} 4... O-O {[%clk 0:02:57.8]} 5. Bd3 {[%clk 0:02:57.6]}
5... c5 {[%clk 0:02:57.1]} 6. Ne2 {[%clk 0:02:55]} 6... d6 {[%clk 0:02:56.6]} 7.
O-O {[%clk 0:02:54.1]} 7... Bxc3 {[%clk 0:02:56.1]} 8. bxc3 {[%clk 0:02:52.8]}
8... e5 {[%clk 0:02:56.2]} 9. Qc2 {[%clk 0:02:50]} 9... Nc6 {[%clk 0:02:54.3]}
10. Bb2 {[%clk 0:02:47.9]} 10... b6 {[%clk 0:02:51.4]} 11. Rfd1 {[%clk
0:02:42.8]} 11... Qe7 {[%clk 0:02:46.5]} 12. Ng3 {[%clk 0:02:32.4]} 12... Re8
{[%clk 0:02:40.4]} 13. Ne4 {[%clk 0:02:26.9]} 13... Nxe4 {[%clk 0:02:38.4]} 14.
Bxe4 {[%clk 0:02:26.8]} 14... Bb7 {[%clk 0:02:37.3]} 15. Bxh7+ {[%clk
0:02:25.2]} 15... Kh8 {[%clk 0:02:37.2]} 16. Be4 {[%clk 0:02:15.1]} 16... exd4
{[%clk 0:02:32.9]} 17. Bxc6 {[%clk 0:02:13.9]} 17... Bxc6 {[%clk 0:02:32.1]} 18.
cxd4 {[%clk 0:02:13.2]} 18... Qg5 {[%clk 0:02:23.8]} 19. d5 {[%clk 0:02:02.7]}
19... Bd7 {[%clk 0:02:22.8]} 20. Qc3 {[%clk 0:01:58.5]} 20... f6 {[%clk
0:02:15.1]} 21. Bc1 {[%clk 0:01:47.2]} 21... Bh3 {[%clk 0:02:10]} 22. g3 {[%clk
0:01:29.1]} 22... Qg4 {[%clk 0:02:05.3]} 23. Qe1 {[%clk 0:00:50.4]} 23... Qf3
{[%clk 0:02:01.3]} 24. Qf1 {[%clk 0:00:34.7]} 24... Bxf1 {[%clk 0:01:58.8]} 25.
Rxf1 {[%clk 0:00:32.4]} 25... Kg8 {[%clk 0:01:56.6]} 26. Re1 {[%clk 0:00:27.2]}
26... Kf7 {[%clk 0:01:54.1]} 27. Bb2 {[%clk 0:00:25.5]} 27... Rh8 {[%clk
0:01:50.7]} 28. h4 {[%clk 0:00:21]} 28... Rxh4 {[%clk 0:01:45.9]} 29. gxh4
{[%clk 0:00:20.3]} 29... Rh8 {[%clk 0:01:45.2]} 0-1

[Event "*** Titled Tuesday Blitz"]
[Site "Chess.com"]
[Date "2020.05.26"]
[Round "7"]
[White "bmt011"]
[Black "WonderChampion"]
[Result "1-0"]
[WhiteElo "2063"]
[BlackElo "1915"]
[TimeControl "180+1"]
[EndTime "11:19:18 PDT"]
[Termination "bmt011 won by resignation"]

1. d4 {[%clk 0:03:00.9]} 1... d5 {[%clk 0:02:59.2]} 2. Bf4 {[%clk 0:03:01.2]}
2... Nf6 {[%clk 0:02:57.6]} 3. e3 {[%clk 0:03:00.6]} 3... e6 {[%clk 0:02:55.6]}
4. Nf3 {[%clk 0:03:00.3]} 4... c5 {[%clk 0:02:54.2]} 5. c3 {[%clk 0:02:58.2]}
5... Nc6 {[%clk 0:02:53.1]} 6. Nbd2 {[%clk 0:02:55.6]} 6... Be7 {[%clk
0:02:50.4]} 7. Bd3 {[%clk 0:02:54.6]} 7... O-O {[%clk 0:02:47.9]} 8. h3 {[%clk
0:02:52.1]} 8... a6 {[%clk 0:02:45.9]} 9. a4 {[%clk 0:02:47.4]} 9... c4 {[%clk
0:02:37]} 10. Bc2 {[%clk 0:02:44.5]} 10... Bd6 {[%clk 0:02:35.7]} 11. Ne5 {[%clk
0:02:41.5]} 11... Bxe5 {[%clk 0:02:31.6]} 12. dxe5 {[%clk 0:02:40.4]} 12... Nd7
{[%clk 0:02:29.8]} 13. Nf3 {[%clk 0:02:40.4]} 13... Qc7 {[%clk 0:02:27.4]} 14.
Bxh7+ {[%clk 0:02:27.3]} 14... Kh8 {[%clk 0:02:23.4]} 15. Ng5 {[%clk 0:02:25.2]}
15... g6 {[%clk 0:02:14.2]} 16. Nxf7+ {[%clk 0:02:20.9]} 16... Rxf7 {[%clk
0:02:12.2]} 17. Bxg6 {[%clk 0:02:21]} 17... Rg7 {[%clk 0:02:09.7]} 18. Qh5+
{[%clk 0:02:15]} 18... Kg8 {[%clk 0:02:07.8]} 19. Bh6 {[%clk 0:02:04.2]} 19...
Qxe5 {[%clk 0:01:56.2]} 20. Qxe5 {[%clk 0:01:53]} 20... Ncxe5 {[%clk 0:01:57.1]}
21. Bxg7 {[%clk 0:01:53.4]} 21... Kxg7 {[%clk 0:01:57.7]} 22. Bc2 {[%clk
0:01:52.5]} 22... Nc5 {[%clk 0:01:56.3]} 23. Ke2 {[%clk 0:01:44.8]} 23... Ned3
{[%clk 0:01:53.5]} 24. b4 {[%clk 0:01:32.9]} 24... Ne4 {[%clk 0:01:38.3]} 25.
Bxd3 {[%clk 0:01:31.8]} 25... Nxc3+ {[%clk 0:01:35.2]} 26. Kd2 {[%clk
0:01:31.5]} 26... cxd3 {[%clk 0:01:33.1]} 27. Kxc3 {[%clk 0:01:30.9]} 27... Bd7
{[%clk 0:01:29.1]} 28. Kxd3 {[%clk 0:01:27.8]} 28... Rf8 {[%clk 0:01:29.8]} 29.
f4 {[%clk 0:01:26.2]} 29... Rf7 {[%clk 0:01:29]} 30. Kd4 {[%clk 0:01:24.1]}
30... Kf8 {[%clk 0:01:28.4]} 31. g4 {[%clk 0:01:23.6]} 31... Ke7 {[%clk
0:01:28.5]} 32. h4 {[%clk 0:01:22.5]} 32... Rg7 {[%clk 0:01:28.4]} 33. g5 {[%clk
0:01:22.3]} 33... Rh7 {[%clk 0:01:26.8]} 34. h5 {[%clk 0:01:21.1]} 34... Be8
{[%clk 0:01:27.4]} 35. g6 {[%clk 0:01:20.1]} 35... Rg7 {[%clk 0:01:26.8]} 36.
Ke5 {[%clk 0:01:18.3]} 36... d4 {[%clk 0:01:25.3]} 37. exd4 {[%clk 0:01:16.8]}
37... Bc6 {[%clk 0:01:23.3]} 38. Rhg1 {[%clk 0:01:15.3]} 38... Rg8 {[%clk
0:01:20.6]} 39. h6 {[%clk 0:01:13.7]} 39... Bd7 {[%clk 0:01:19.3]} 40. g7 {[%clk
0:01:11.9]} 1-0

[Event "*** Titled Tuesday Blitz"]
[Site "Chess.com"]
[Date "2020.05.26"]
[Round "7"]
[White "Mbneu"]
[Black "Gerodot71"]
[Result "1-0"]
[WhiteElo "2238"]
[BlackElo "2359"]
[TimeControl "180+1"]
[EndTime "11:19:24 PDT"]
[Termination "Mbneu won by resignation"]

1. d4 {[%clk 0:03:00.9]} 1... Nf6 {[%clk 0:02:59.5]} 2. c4 {[%clk 0:03:00.3]}
2... e6 {[%clk 0:02:59.4]} 3. Nc3 {[%clk 0:03:00]} 3... d5 {[%clk 0:02:57.8]} 4.
Nf3 {[%clk 0:02:58.7]} 4... dxc4 {[%clk 0:02:58.1]} 5. e4 {[%clk 0:02:50.9]}
5... b5 {[%clk 0:02:57.8]} 6. e5 {[%clk 0:02:40.6]} 6... Nd5 {[%clk 0:02:57.4]}
7. Nxb5 {[%clk 0:02:41.1]} 7... Nb6 {[%clk 0:02:57.6]} 8. Be2 {[%clk 0:02:38.5]}
8... Bb7 {[%clk 0:02:56.9]} 9. O-O {[%clk 0:02:37]} 9... Nc6 {[%clk 0:02:56.2]}
10. a4 {[%clk 0:02:26.6]} 10... a5 {[%clk 0:02:53.6]} 11. Na3 {[%clk 0:02:22.4]}
11... Qd5 {[%clk 0:02:49.2]} 12. Be3 {[%clk 0:02:14.1]} 12... O-O-O {[%clk
0:02:45.9]} 13. Rc1 {[%clk 0:02:09.6]} 13... Bxa3 {[%clk 0:02:43.9]} 14. bxa3
{[%clk 0:02:10.5]} 14... Rdg8 {[%clk 0:02:09.6]} 15. Qc2 {[%clk 0:02:06.8]}
15... g5 {[%clk 0:02:07.2]} 16. Bxc4 {[%clk 0:02:04.8]} 16... Nxc4 {[%clk
0:02:06.3]} 17. Qxc4 {[%clk 0:02:05.5]} 17... Qe4 {[%clk 0:02:04.2]} 18. Nd2
{[%clk 0:01:56.9]} 18... Qf5 {[%clk 0:01:56.4]} 19. Rb1 {[%clk 0:01:47]} 19...
Nd8 {[%clk 0:01:35.7]} 20. Rxb7 {[%clk 0:01:31.9]} 20... Kxb7 {[%clk 0:01:32.2]}
21. Rb1+ {[%clk 0:01:11]} 21... Kc8 {[%clk 0:01:29.4]} 22. Rc1 {[%clk
0:01:10.5]} 22... c6 {[%clk 0:01:24.5]} 23. Qa6+ {[%clk 0:01:09]} 23... Kd7
{[%clk 0:01:24.2]} 24. Nc4 {[%clk 0:01:08.8]} 24... Ke8 {[%clk 0:01:11.6]} 25.
Nd6+ {[%clk 0:01:05.8]} 25... Kf8 {[%clk 0:01:11.9]} 26. Nxf5 {[%clk 0:01:05.2]}
26... exf5 {[%clk 0:01:12.8]} 27. d5 {[%clk 0:00:59.5]} 27... cxd5 {[%clk
0:01:11]} 28. Qf6 {[%clk 0:00:54.9]} 28... Ke8 {[%clk 0:01:06.9]} 29. Rc7 {[%clk
0:00:50.7]} 1-0

[Event "*** Titled Tuesday Blitz"]
[Site "Chess.com"]
[Date "2020.05.26"]
[Round "7"]
[White "MacDaddyMac"]
[Black "TregubovP"]
[Result "0-1"]
[WhiteElo "2255"]
[BlackElo "2555"]
[TimeControl "180+1"]
[EndTime "11:19:26 PDT"]
[Termination "TregubovP won by checkmate"]

1. e4 {[%clk 0:03:00.9]} 1... e6 {[%clk 0:02:59.1]} 2. d4 {[%clk 0:02:57.7]}
2... d5 {[%clk 0:02:59.6]} 3. Nc3 {[%clk 0:02:57.2]} 3... Bb4 {[%clk 0:02:58.4]}
4. e5 {[%clk 0:02:55.7]} 4... c5 {[%clk 0:02:58.8]} 5. Bd2 {[%clk 0:02:55]} 5...
Nc6 {[%clk 0:02:56.9]} 6. a3 {[%clk 0:02:51.7]} 6... Bxc3 {[%clk 0:02:47.4]} 7.
bxc3 {[%clk 0:02:51.5]} 7... cxd4 {[%clk 0:02:45.5]} 8. cxd4 {[%clk 0:02:51.7]}
8... Nxd4 {[%clk 0:02:44.7]} 9. Nf3 {[%clk 0:02:48.6]} 9... Nxf3+ {[%clk
0:02:34.8]} 10. Qxf3 {[%clk 0:02:49.5]} 10... Ne7 {[%clk 0:02:35.2]} 11. Bd3
{[%clk 0:02:49.1]} 11... Ng6 {[%clk 0:02:30]} 12. Qg3 {[%clk 0:02:46.7]} 12...
Qc7 {[%clk 0:02:28.8]} 13. f4 {[%clk 0:02:46.1]} 13... Qc5 {[%clk 0:02:22.1]}
14. h4 {[%clk 0:02:42.1]} 14... Bd7 {[%clk 0:02:15]} 15. h5 {[%clk 0:02:40.9]}
15... Ne7 {[%clk 0:02:15]} 16. Qxg7 {[%clk 0:02:36.5]} 16... Rg8 {[%clk
0:02:14.5]} 17. Qf6 {[%clk 0:02:23.1]} 17... Rxg2 {[%clk 0:02:11.5]} 18. Rf1
{[%clk 0:02:20.1]} 18... Bb5 {[%clk 0:01:58.2]} 19. Bb4 {[%clk 0:01:59.2]} 19...
Qe3+ {[%clk 0:01:29.1]} 20. Kd1 {[%clk 0:01:57.1]} 20... O-O-O {[%clk 0:01:16]}
21. Qxf7 {[%clk 0:00:27.1]} 21... Bxd3 {[%clk 0:01:12.1]} 22. Qxe6+ {[%clk
0:00:27]} 22... Kb8 {[%clk 0:01:12]} 23. Qxe7 {[%clk 0:00:17.6]} 23... Bxc2#
{[%clk 0:01:10.3]} 0-1

[Event "*** Titled Tuesday Blitz"]
[Site "Chess.com"]
[Date "2020.05.26"]
[Round "7"]
[White "Vandros57"]
[Black "AcsinteMatei"]
[Result "1-0"]
[WhiteElo "2238"]
[BlackElo "2335"]
[TimeControl "180+1"]
[EndTime "11:19:26 PDT"]
[Termination "Vandros57 won by resignation"]

1. d4 {[%clk 0:03:00.9]} 1... Nf6 {[%clk 0:02:58.7]} 2. Nf3 {[%clk 0:03:00]}
2... e6 {[%clk 0:02:56.1]} 3. c4 {[%clk 0:02:59.2]} 3... Bb4+ {[%clk 0:02:55.1]}
4. Bd2 {[%clk 0:02:58.3]} 4... a5 {[%clk 0:02:55.5]} 5. a3 {[%clk 0:02:49.6]}
5... Bxd2+ {[%clk 0:02:50.8]} 6. Qxd2 {[%clk 0:02:48.9]} 6... O-O {[%clk
0:02:49.1]} 7. Nc3 {[%clk 0:02:48.1]} 7... d5 {[%clk 0:02:49.7]} 8. e3 {[%clk
0:02:45.6]} 8... b6 {[%clk 0:02:49.6]} 9. Be2 {[%clk 0:02:44.3]} 9... Ba6 {[%clk
0:02:49.8]} 10. cxd5 {[%clk 0:02:42]} 10... Bxe2 {[%clk 0:02:49.1]} 11. Qxe2
{[%clk 0:02:40.9]} 11... exd5 {[%clk 0:02:47.5]} 12. O-O {[%clk 0:02:38.8]}
12... a4 {[%clk 0:02:47.4]} 13. Rac1 {[%clk 0:02:37.2]} 13... Nc6 {[%clk
0:02:41.3]} 14. Nb5 {[%clk 0:02:32]} 14... Na5 {[%clk 0:02:39.3]} 15. Nxc7
{[%clk 0:02:27.5]} 15... Rc8 {[%clk 0:02:37.7]} 16. Nb5 {[%clk 0:02:26.3]} 16...
Nc4 {[%clk 0:02:36.7]} 17. Nc3 {[%clk 0:02:21.8]} 17... Rc7 {[%clk 0:02:33.3]}
18. Nxa4 {[%clk 0:02:18.7]} 18... Qa8 {[%clk 0:02:31.2]} 19. Nc3 {[%clk
0:02:15.9]} 19... Rfc8 {[%clk 0:02:30]} 20. g3 {[%clk 0:02:04.2]} 20... Qa5
{[%clk 0:02:20.7]} 21. Kg2 {[%clk 0:02:02.5]} 21... b5 {[%clk 0:02:07.3]} 22.
Na2 {[%clk 0:01:47.2]} 22... Nxe3+ {[%clk 0:02:04.7]} 23. Qxe3 {[%clk
0:01:36.6]} 23... Ng4 {[%clk 0:02:02.9]} 24. Qd2 {[%clk 0:01:27]} 24... Qxd2
{[%clk 0:02:01.7]} 25. Nxd2 {[%clk 0:01:26.1]} 25... Rc2 {[%clk 0:01:59.2]} 26.
h3 {[%clk 0:01:14.5]} 26... Ne3+ {[%clk 0:01:54.4]} 27. fxe3 {[%clk 0:01:11.3]}
27... Rxd2+ {[%clk 0:01:54.5]} 28. Kf3 {[%clk 0:01:11.3]} 28... Re8 {[%clk
0:01:53]} 29. Nc3 {[%clk 0:01:06.2]} 29... Rxb2 {[%clk 0:01:50.5]} 30. Nxd5
{[%clk 0:01:06.1]} 30... h6 {[%clk 0:01:42.1]} 31. Rc3 {[%clk 0:01:05.6]} 31...
f5 {[%clk 0:01:38.8]} 32. h4 {[%clk 0:01:04.5]} 32... Kf7 {[%clk 0:01:37.3]} 33.
h5 {[%clk 0:01:03.7]} 33... Rh2 {[%clk 0:01:35.4]} 34. Nf4 {[%clk 0:01:01.8]}
34... Rb2 {[%clk 0:01:32.4]} 35. Rc7+ {[%clk 0:00:59.8]} 35... Kf6 {[%clk
0:01:29.6]} 36. Rfc1 {[%clk 0:00:59]} 1-0

[Event "*** Titled Tuesday Blitz"]
[Site "Chess.com"]
[Date "2020.05.26"]
[Round "7"]
[White "ameetghasi100"]
[Black "Chessdemon2019"]
[Result "1-0"]
[WhiteElo "2713"]
[BlackElo "2329"]
[TimeControl "180+1"]
[EndTime "11:19:35 PDT"]
[Termination "ameetghasi100 won by resignation"]

1. Nf3 {[%clk 0:03:00.9]} 1... c5 {[%clk 0:02:59.9]} 2. g3 {[%clk 0:03:00.8]}
2... Nc6 {[%clk 0:02:59.4]} 3. Bg2 {[%clk 0:03:01.7]} 3... g6 {[%clk 0:02:59.2]}
4. O-O {[%clk 0:03:02.6]} 4... Bg7 {[%clk 0:02:59.4]} 5. d3 {[%clk 0:03:03.2]}
5... e5 {[%clk 0:02:56.9]} 6. c4 {[%clk 0:03:03.3]} 6... Nge7 {[%clk 0:02:56.7]}
7. Nc3 {[%clk 0:03:03.9]} 7... O-O {[%clk 0:02:57]} 8. a3 {[%clk 0:03:04.5]}
8... d6 {[%clk 0:02:57.3]} 9. Rb1 {[%clk 0:03:04.8]} 9... Be6 {[%clk 0:02:55.7]}
10. b4 {[%clk 0:03:03.3]} 10... h6 {[%clk 0:02:51.9]} 11. bxc5 {[%clk
0:03:00.1]} 11... dxc5 {[%clk 0:02:51.2]} 12. Rxb7 {[%clk 0:03:00]} 12... Rb8
{[%clk 0:02:49.8]} 13. Rxb8 {[%clk 0:02:37.5]} 13... Qxb8 {[%clk 0:02:49.6]} 14.
Na4 {[%clk 0:02:38]} 14... Qd6 {[%clk 0:02:39.7]} 15. Nd2 {[%clk 0:02:36.6]}
15... f5 {[%clk 0:02:38.5]} 16. Nb3 {[%clk 0:02:35.9]} 16... e4 {[%clk
0:02:36.3]} 17. Naxc5 {[%clk 0:02:32.1]} 17... Nd4 {[%clk 0:02:34.1]} 18. Nxe6
{[%clk 0:02:27.2]} 18... Qxe6 {[%clk 0:02:33.8]} 19. Nxd4 {[%clk 0:02:22.5]}
19... Bxd4 {[%clk 0:02:33.2]} 20. Bxh6 {[%clk 0:01:57.8]} 20... Rd8 {[%clk
0:02:32.9]} 21. Qd2 {[%clk 0:01:56.2]} 21... exd3 {[%clk 0:02:28.2]} 22. exd3
{[%clk 0:01:55.3]} 22... Qf6 {[%clk 0:02:22.9]} 23. Bg5 {[%clk 0:01:54.5]} 23...
Qg7 {[%clk 0:02:22.7]} 24. Qe2 {[%clk 0:01:53.3]} 24... Re8 {[%clk 0:02:21.6]}
25. Re1 {[%clk 0:01:50]} 25... Bc5 {[%clk 0:02:17.5]} 26. Qe6+ {[%clk
0:01:47.9]} 26... Kh7 {[%clk 0:02:16]} 27. Bf6 {[%clk 0:01:44.7]} 27... Qf8
{[%clk 0:02:11.1]} 28. d4 {[%clk 0:01:30.8]} 28... Bxa3 {[%clk 0:02:06]} 29. Qd7
{[%clk 0:01:21]} 29... Bb4 {[%clk 0:01:23.4]} 30. Re6 {[%clk 0:01:18.4]} 30...
Qf7 {[%clk 0:01:05.8]} 31. c5 {[%clk 0:01:09.8]} 31... Kg8 {[%clk 0:00:59.8]}
32. Rxe7 {[%clk 0:00:58.6]} 32... Rxe7 {[%clk 0:00:58.8]} 33. Bxe7 {[%clk
0:00:59.2]} 33... Ba5 {[%clk 0:00:46.4]} 34. Bd5 {[%clk 0:00:58.4]} 1-0

[Event "*** Titled Tuesday Blitz"]
[Site "Chess.com"]
[Date "2020.05.26"]
[Round "7"]
[White "GMartin_Petrov"]
[Black "Dmitry_Konenkin"]
[Result "1-0"]
[WhiteElo "2557"]
[BlackElo "2254"]
[TimeControl "180+1"]
[EndTime "11:19:40 PDT"]
[Termination "GMartin_Petrov won by resignation"]

1. c4 {[%clk 0:03:00.9]} 1... e5 {[%clk 0:02:58.3]} 2. Nc3 {[%clk 0:03:00.6]}
2... d6 {[%clk 0:02:55.3]} 3. g3 {[%clk 0:03:00.8]} 3... Be6 {[%clk 0:02:55.6]}
4. Bg2 {[%clk 0:03:00.8]} 4... Nc6 {[%clk 0:02:56.1]} 5. d3 {[%clk 0:02:57.5]}
5... Qd7 {[%clk 0:02:56.3]} 6. Rb1 {[%clk 0:02:55.3]} 6... a5 {[%clk 0:02:50.5]}
7. Nd5 {[%clk 0:02:52.1]} 7... f5 {[%clk 0:02:45.7]} 8. e3 {[%clk 0:02:50.6]}
8... Nge7 {[%clk 0:02:42.4]} 9. Ne2 {[%clk 0:02:49.1]} 9... h5 {[%clk
0:02:36.9]} 10. h4 {[%clk 0:02:46.6]} 10... Ng6 {[%clk 0:02:22.5]} 11. O-O
{[%clk 0:02:38.9]} 11... Rb8 {[%clk 0:02:01.7]} 12. Nec3 {[%clk 0:02:37]} 12...
Nce7 {[%clk 0:01:58]} 13. b4 {[%clk 0:01:59.9]} 13... axb4 {[%clk 0:01:34.1]}
14. Nxb4 {[%clk 0:01:58.9]} 14... c6 {[%clk 0:01:25.9]} 15. Bf3 {[%clk
0:01:49.1]} 15... e4 {[%clk 0:01:06.2]} 16. dxe4 {[%clk 0:01:43]} 16... fxe4
{[%clk 0:01:04.2]} 17. Nxe4 {[%clk 0:01:40.9]} 17... Nf5 {[%clk 0:00:49.2]} 18.
Nxc6 {[%clk 0:01:22.8]} 18... Rc8 {[%clk 0:00:43.5]} 19. Bxh5 {[%clk 0:01:17.3]}
19... Rh6 {[%clk 0:00:33.3]} 20. Nd4 {[%clk 0:01:10.7]} 20... Nxd4 {[%clk
0:00:22.1]} 21. exd4 {[%clk 0:01:09.6]} 21... Rxc4 {[%clk 0:00:20.4]} 22. Bxh6
{[%clk 0:01:07.4]} 22... gxh6 {[%clk 0:00:11.9]} 23. Nf6+ {[%clk 0:01:06.8]} 1-0

[Event "*** Titled Tuesday Blitz"]
[Site "Chess.com"]
[Date "2020.05.26"]
[Round "7"]
[White "Swarajan"]
[Black "CzechmVIII"]
[Result "1-0"]
[WhiteElo "2095"]
[BlackElo "2160"]
[TimeControl "180+1"]
[EndTime "11:19:40 PDT"]
[Termination "Swarajan won by resignation"]

1. d4 {[%clk 0:03:00.9]} 1... Nf6 {[%clk 0:02:59.6]} 2. c4 {[%clk 0:03:01.1]}
2... c5 {[%clk 0:02:59.6]} 3. d5 {[%clk 0:03:00.9]} 3... e6 {[%clk 0:03:00.1]}
4. Nc3 {[%clk 0:03:01.3]} 4... exd5 {[%clk 0:03:00.4]} 5. cxd5 {[%clk
0:03:02.2]} 5... d6 {[%clk 0:03:00.9]} 6. e4 {[%clk 0:03:02.7]} 6... g6 {[%clk
0:03:01.4]} 7. Nf3 {[%clk 0:03:03.1]} 7... a6 {[%clk 0:02:59.9]} 8. a4 {[%clk
0:03:02.9]} 8... Bg4 {[%clk 0:02:59.7]} 9. Be2 {[%clk 0:03:02.8]} 9... Bxf3
{[%clk 0:02:59.9]} 10. Bxf3 {[%clk 0:03:03.1]} 10... Bg7 {[%clk 0:03:00.3]} 11.
O-O {[%clk 0:03:03.3]} 11... O-O {[%clk 0:02:59.8]} 12. Bf4 {[%clk 0:03:03.4]}
12... Qe7 {[%clk 0:02:59.8]} 13. Qc2 {[%clk 0:03:02.9]} 13... Nbd7 {[%clk
0:02:57.2]} 14. Rfe1 {[%clk 0:03:02.6]} 14... Rab8 {[%clk 0:02:50.8]} 15. a5
{[%clk 0:03:01.4]} 15... Rfc8 {[%clk 0:02:38.8]} 16. Rad1 {[%clk 0:02:59.9]}
16... c4 {[%clk 0:02:31.9]} 17. Na4 {[%clk 0:02:54.7]} 17... Ne5 {[%clk
0:02:10.5]} 18. Be2 {[%clk 0:02:47.2]} 18... Nfd7 {[%clk 0:02:07.5]} 19. Bg3
{[%clk 0:02:45.8]} 19... b5 {[%clk 0:02:06.3]} 20. axb6 {[%clk 0:02:38.7]} 20...
Nxb6 {[%clk 0:02:05.7]} 21. Nxb6 {[%clk 0:02:38.4]} 21... Rxb6 {[%clk
0:02:05.7]} 22. f4 {[%clk 0:02:38.1]} 22... Nd7 {[%clk 0:01:57.8]} 23. b3 {[%clk
0:02:29.8]} 23... c3 {[%clk 0:01:50.1]} 24. Bg4 {[%clk 0:02:26.6]} 24... Rcb8
{[%clk 0:01:37.5]} 25. Bxd7 {[%clk 0:02:21.3]} 25... Qxd7 {[%clk 0:01:36.6]} 26.
e5 {[%clk 0:02:21.4]} 26... Rxb3 {[%clk 0:01:31.5]} 27. e6 {[%clk 0:02:21.4]}
27... Qe7 {[%clk 0:01:19.3]} 28. f5 {[%clk 0:02:01.3]} 28... Rb2 {[%clk
0:01:15.4]} 29. Qe4 {[%clk 0:01:59.5]} 29... c2 {[%clk 0:00:59.2]} 30. Rc1
{[%clk 0:01:57.6]} 30... gxf5 {[%clk 0:00:34.7]} 31. Qxf5 {[%clk 0:01:52.7]}
31... Rb1 {[%clk 0:00:20.5]} 32. Qxc2 {[%clk 0:01:44.1]} 32... Rxc1 {[%clk
0:00:18.3]} 33. Qxc1 {[%clk 0:01:43.9]} 33... fxe6 {[%clk 0:00:17.3]} 34. dxe6
{[%clk 0:01:43]} 34... Re8 {[%clk 0:00:15.6]} 35. Qc6 {[%clk 0:01:40.5]} 35...
h5 {[%clk 0:00:13.8]} 36. Bxd6 {[%clk 0:01:39.3]} 36... Qg5 {[%clk 0:00:11.5]}
37. Qxe8+ {[%clk 0:01:38.9]} 1-0

[Event "*** Titled Tuesday Blitz"]
[Site "Chess.com"]
[Date "2020.05.26"]
[Round "7"]
[White "EvgenyRomanov"]
[Black "Lovinski"]
[Result "1-0"]
[WhiteElo "2648"]
[BlackElo "2413"]
[TimeControl "180+1"]
[EndTime "11:19:46 PDT"]
[Termination "EvgenyRomanov won on time"]

1. b3 {[%clk 0:03:00.9]} 1... d5 {[%clk 0:02:59.7]} 2. Bb2 {[%clk 0:03:01.8]}
2... c5 {[%clk 0:02:57.7]} 3. e3 {[%clk 0:03:01.2]} 3... a6 {[%clk 0:02:56.4]}
4. f4 {[%clk 0:02:59.7]} 4... Nf6 {[%clk 0:02:55.7]} 5. Nf3 {[%clk 0:02:59.6]}
5... g6 {[%clk 0:02:56.1]} 6. Be2 {[%clk 0:02:56.9]} 6... Bg7 {[%clk 0:02:56.2]}
7. O-O {[%clk 0:02:56.9]} 7... O-O {[%clk 0:02:56.6]} 8. Qe1 {[%clk 0:02:54.4]}
8... Nc6 {[%clk 0:02:56.8]} 9. d3 {[%clk 0:02:49.8]} 9... b5 {[%clk 0:02:56.5]}
10. Nbd2 {[%clk 0:02:47.6]} 10... Bb7 {[%clk 0:02:49.6]} 11. Qh4 {[%clk
0:02:46.2]} 11... d4 {[%clk 0:02:47]} 12. e4 {[%clk 0:02:43.3]} 12... Nb4 {[%clk
0:02:30.4]} 13. Bd1 {[%clk 0:02:40.5]} 13... Rc8 {[%clk 0:02:26.1]} 14. a3
{[%clk 0:02:39.5]} 14... Nc6 {[%clk 0:02:25.9]} 15. Be2 {[%clk 0:02:39.9]} 15...
Qc7 {[%clk 0:02:19.9]} 16. Rae1 {[%clk 0:02:37.5]} 16... Rfe8 {[%clk 0:02:14.5]}
17. Bc1 {[%clk 0:02:35]} 17... Rcd8 {[%clk 0:01:57.1]} 18. e5 {[%clk 0:02:26.7]}
18... Nd5 {[%clk 0:01:55.8]} 19. Ne4 {[%clk 0:02:27.3]} 19... Qb6 {[%clk
0:01:22.8]} 20. Nfg5 {[%clk 0:02:22.4]} 20... h6 {[%clk 0:01:21.2]} 21. e6
{[%clk 0:02:22]} 21... f5 {[%clk 0:01:05.9]} 22. Nf7 {[%clk 0:02:21.2]} 22...
fxe4 {[%clk 0:01:05.2]} 23. dxe4 {[%clk 0:02:18.8]} 23... Ne3 {[%clk 0:00:58.5]}
24. Nxh6+ {[%clk 0:02:06.2]} 24... Kf8 {[%clk 0:00:50.5]} 25. Bxe3 {[%clk
0:01:46.6]} 25... dxe3 {[%clk 0:00:50.6]} 26. f5 {[%clk 0:01:47.2]} 26... g5
{[%clk 0:00:14.1]} 27. Qh5 {[%clk 0:01:45.7]} 27... Ne5 {[%clk 0:00:13.2]} 28.
Ng4 {[%clk 0:01:45.5]} 28... Kg8 {[%clk 0:00:03.6]} 29. Nxe5 {[%clk 0:01:34.4]}
29... Bxe5 {[%clk 0:00:03.8]} 30. Qf7+ {[%clk 0:01:34.1]} 30... Kh8 {[%clk
0:00:04.2]} 31. Rf3 {[%clk 0:01:32.1]} 1-0